Cogmind - Beta 13 @@@ ROGUE MODE // 2024.04.21 @ 10:26:39 Player: Tyrannosaurus Flex Result: Core destroyed Performance ------------- Evolutions (0) 0 Regions Visited (1) 200 Robots Destroyed (17) 85 Value Destroyed (446) 446 Prototype IDs (0) 0 Alien Tech Used (0) 0 Bonus (0) 0 TOTAL SCORE: 731 Bonus ------- None Cogmind --------- Core Integrity 0/250 Matter 257/300 Energy 154/250 System Corruption 1% Temperature Critical (748) Movement Rolling (110) Ox2 Location -10/Materials Parts ------- > --- POWER (1) -------- Ion Engine > --- PROPULSION (2) --- Wheel > --- UTILITY (2) ------ Small Storage Unit Medium Armor Plating > --- WEAPON (2) ------- Particle Gun Particle Gun > --- INVENTORY (8) ---- Ion Engine Medium Armor Plating Particle Gun Particle Gun Mini Grenade Launcher Mini Grenade Launcher Hammer Peak State ------------ > --- POWER ------------ Ion Engine > --- PROPULSION ------- Wheel Wheel > --- UTILITY ---------- Small Storage Unit Medium Armor Plating > --- WEAPON ----------- Particle Gun Particle Gun > --- INVENTORY -------- Ion Engine Small Laser Particle Gun Particle Gun Light Assault Rifle Mini Grenade Launcher Mini Grenade Launcher Hammer [Rating: 11] Favorites ----------- Power Ion Engine Engine Ion Engine Propulsion Wheel Treads Light Treads Leg Aluminum Leg Wheel Wheel Utility Small Storage Unit Storage Small Storage Unit Processor Targeting Computer Protection Medium Armor Plating Weapon Particle Gun Energy Gun Particle Gun Ballistic Gun Light Assault Rifle Impact Weapon Hammer Build | -11 -10 ------- Run | Yrd Mat Slots Evolved . | . . Power . | . . Propulsion . | . . Utility . | . . Weapon . | . . Parts Attached 24 | 6 18 Power 2 | 1 1 Engine 2 | 1 1 Core . | . . Reactor . | . . Propulsion 10 | 2 8 Treads 4 | . 4 Leg 2 | 2 . Wheel 4 | . 4 Hover . | . . Flight . | . . Utility 4 | 1 3 Device . | . . Storage 1 | 1 . Processor 1 | . 1 Hackware . | . . Protection 2 | . 2 Artifact . | . . Weapon 8 | 2 6 Energy Gun 5 | 1 4 Energy Cannon . | . . Ballistic Gun 1 | 1 . Ballistic Cannon . | . . Launcher . | . . Special Weapon . | . . Impact Weapon 2 | . 2 Slashing Weapon . | . . Piercing Weapon . | . . Special Melee Weapon . | . . Unidentified Prototypes . | . . Parts Lost 2 | . 2 Power . | . . Propulsion 1 | . 1 Utility 1 | . 1 Weapon . | . . Highest Loss Streak 1 | . 1 To Critical Strikes . | . . Average Slot Usage (%) 96 | . 96 Engine 14 | . 14 Treads 9 | . 9 Wheel 17 | . 17 Storage 14 | . 14 Processor 4 | . 4 Protection 6 | . 6 Energy Gun 20 | . 20 Ballistic Gun 7 | . 7 Naked Turns . | . . Heaviest Build 23 | 12 23 Greatest Support 40 | 20 40 Greatest Overweight (x) 1 | . 1 Average Overweight (x) . | . . Largest Inventory Capacity 8 | 8 8 Average Capacity 7 | 7 8 Most Carried 8 | 6 8 Average Carried 7 | 3 7 Final Capacity 8 | 8 8 Final Carried 7 | 6 7 Class Distribution -------------------- 100% | Mutant Dominant Class ---------------- Mutant | -10/Materials Resources | -11 -10 ----------- Run | Yrd Mat Matter Collected 500 | 239 261 Remotely . | . . Salvage Created 536 | . 536 Parts 33 | . 33 Haulers Intercepted . | . . Recyclers Shooed . | . . Parts Field Recycled . | . . Retrieved Matter . | . . Parts Self-Destructed . | . . Prevented . | . . Kills | -11 -10 ------- Run | Yrd Mat Combat Hostiles Destroyed 13 | . 13 Guns 12 | . 12 Classes Destroyed 5 | . 5 Builder 1 | . 1 Recycler 1 | . 1 Operator 2 | . 2 Swarmer 3 | . 3 Grunt 10 | . 10 Best Kill Streak 5 | . 5 Combat Bots Only 4 | . 4 Max Kills in Single Turn 2 | . 2 Gunslinging 1 | . 1 Exploded . | . . Melee . | . . Uniques/NPCs Destroyed . | . . Combat | -11 -10 -------- Run | Yrd Mat Hostile Shots Fired 69 | . 69 Missed 12 | . 12 Damage Taken 764 | . 764 Core 288 | . 288 Absorbed by Shields . | . . Core Remaining (%) 100 | 100 . Volleys Fired 49 | . 49 Largest 2 | . 2 Hottest 130 | . 130 Shots Fired 92 | . 92 Gun 92 | . 92 Cannon . | . . Launcher . | . . Special . | . . Kinetic 14 | . 14 Thermal 78 | . 78 Explosive . | . . Electromagnetic . | . . Robot Hit Streak 6 | . 6 Robot Miss Streak 11 | . 11 Penetration Max . | . . Secondary Targets 1 | . 1 Max Gunslinging Chain 1 | . 1 Shots Hit Robots 54 | . 54 Core Hits 24 | . 24 Critical Kills . | . . Critical Parts Destroyed 2 | . 2 Critical Strikes 4 | . 4 Burn 2 | . 2 Smash 2 | . 2 Melee Attacks 9 | . 9 Impact 9 | . 9 Slashing . | . . Piercing . | . . Sneak Attacks 1 | . 1 Combat Hostiles . | . . Follow-up Attacks . | . . Damage Inflicted 890 | . 890 Guns 671 | . 671 Cannons . | . . Explosions . | . . Melee 216 | . 216 Ramming 3 | . 3 Kinetic 61 | . 61 Thermal 610 | . 610 Explosive . | . . Electromagnetic . | . . Impact 216 | . 216 Slashing . | . . Piercing . | . . Highest Corruption 1 | . 1 Average Corruption 1 | . 1 Corruption Purged . | . . Corruption Blocked . | . . Effects 4 | . 4 Message Errors 2 | . 2 Matter Fused 1 | . 1 Weapon Failures 1 | . 1 Overload Shots . | . . Overflow Damage 97 | . 97 Projectiles . | . . Explosions . | . . Melee 97 | . 97 Knockbacks . | . . Impact . | . . Kinetic . | . . Secondary . | . . Self-Inflicted Damage 3 | . 3 Shots . | . . Rammed . | . . Targets Rammed . | . . Kicked . | . . Crushed . | . . Highest Temperature 748 | . 748 Average Temperature 174 | . 174 Received Heat Transfer 318 | . 318 Effects 23 | . 23 Shutdowns 5 | . 5 Energy Bleed 2 | . 2 Matter Decay 2 | . 2 Damage (minor) 4 | . 4 Damage (major) 7 | . 7 Damage (core) 3 | . 3 Siege Activations . | . . Robots Corrupted . | . . Combat Hostiles . | . . Parts Fried 3 | . 3 Impact Corruptions 5 | . 5 Robots Melted . | . . Combat Hostiles . | . . Parts Melted 2 | . 2 Heat Transferred 1558 | . 1558 Parts Sabotaged . | . . Parts Stolen . | . . Parts Stripped . | . . Power Chain Reactions . | . . Alert | -11 -10 ------- Run | Yrd Mat Peak Influence 265 | . 265 Initial . | . . Average 51 | . 56 Maximum Alert Level 1 | . 1 Low Security (%) 91 | 100 90 Level 1 8 | . 9 Level 2 . | . . Level 3 . | . . Level 4 . | . . Level 5 . | . . High Security . | . . Max Security . | . . Squads Dispatched 5 | . 5 Investigation 1 | . 1 Extermination . | . . Reinforcement 4 | . 4 Assault . | . . Garrison . | . . Intercept . | . . Searches Triggered . | . . Construction Impeded . | . . Haulers Reinforced . | . . Active Scanning Responses . | . . Cargo Convoy Interrupts . | . . Stealth | -11 -10 --------- Run | Yrd Mat Distress Signals 2 | . 2 Communications Jammed . | . . Distress Signals . | . . Times Spotted 27 | . 27 Peak Tracking Total 6 | . 6 Tactical Retreats 2 | . 2 Traps | -11 -10 ------- Run | Yrd Mat Traps Triggered 1 | . 1 Indirectly . | . . Trap Hack Attempts . | . . Triggered . | . . Disarmed . | . . Reprogrammed . | . . Reused . | . . Traps Extracted . | . . Installed . | . . Triggered . | . . Machines | -11 -10 ---------- Run | Yrd Mat Machines Disabled 2 | . 2 Max in Single Turn 1 | . 1 Machines Repaired . | . . Machines Dismantled . | . . Machines Sabotaged . | . . Overloaded Fab Kills . | . . Hacking | -11 -10 --------- Run | Yrd Mat Machines Accessed 2 | . 2 Terminals 2 | . 2 Fabricators . | . . Repair Stations . | . . Recycling Units . | . . Scanalyzers . | . . Garrison Access . | . . Total Hacks 4 | . 4 Successful 3 | . 3 Failed 1 | . 1 Catastrophic . | . . Database Lockouts . | . . Manual 4 | . 4 Terminals 4 | . 4 Fabricators . | . . Repair Stations . | . . Recycling Units . | . . Scanalyzers . | . . Garrison Access . | . . Terminal Hacks 1 | . 1 Terminal Index 1 | . 1 Fabricator Hacks . | . . Repair Station Hacks . | . . Recycling Unit Hacks . | . . Scanalyzer . | . . Garrison Access Hacks . | . . Unauthorized Hacks 2 | . 2 Terminals 2 | . 2 Botnet 2 | . 2 Fabricators . | . . Repair Stations . | . . Recycling Units . | . . Scanalyzers . | . . Garrison Access . | . . Data Cores Recovered . | . . Used . | . . Hacking Detections 1 | . 1 Full Trace Events . | . . Feedback Events . | . . Feedback Blocked . | . . Robot Schematics Acquired . | . . Robots Built . | . . Authchips . | . . Time . | . . Total Robot Build Rating . | . . Part Schematics Acquired . | . . Parts Built . | . . Authchips . | . . Time . | . . Total Part Build Rating . | . . Parts Repaired . | . . Time . | . . Parts Recycled . | . . Recycled Matter . | . . Retrieved Matter . | . . Retrieved Components . | . . Parts Scanalyzed . | . . Part Schematics Acquired . | . . Parts Damaged . | . . Bothacking | -11 -10 ------------ Run | Yrd Mat Used RIF Installer . | . . Robots Hacked . | . . Non-combat . | . . Combat . | . . Robot Hacks Applied . | . . Relay Couplers Released . | . . Fabnet Peak Effective % . | . . Robots Rewired . | . . Allies Hacked . | . . Hacks Repelled . | . . Allies | -11 -10 -------- Run | Yrd Mat Total Allies . | . . Largest Group . | . . Highest-Rated Group . | . . Highest-Rated Ally . | . . Total Orders . | . . Ally Attacks . | . . Total Damage . | . . Kills . | . . Allies Corrupted . | . . Allies Melted . | . . Intel | -11 -10 ------- Run | Yrd Mat Robot Analysis Total . | . . Derelict Logs Recovered . | . . Drone Launches . | . . Drone Recoveries . | . . Exploration | -11 -10 ------------- Run | Yrd Mat Turns Passed 948 | 87 861 Spaces Moved 564 | 64 500 Core 7 | 7 . Treads 161 | . 161 Legs 57 | 57 . Wheels 339 | . 339 Hover . | . . Flight . | . . Fastest Speed 50 | 50 80 Average Speed 112 | 112 112 Slowest Speed 160 | 120 160 Overloaded Moves . | . . Propulsion Burnouts . | . . Robots Hopped . | . . Cave-ins Triggered . | . . Exploration Rate (%) 33 | 5 62 Regions Visited 1 Branch Regions . Pre-discovered Areas . | . . Known Exits Taken . | . . Unknown Exits Taken 1 | 1 . Scrap Searched . | . . Spaces Dug 1 | . 1 Terrain Destroyed 1 | . 1 Melee 1 | . 1 Projectile . | . . AOE . | . . Terrain Rammed 1 | . 1 Walls Destroyed . | . . Machines Disabled . | . . Actions | -11 -10 --------- Run | Yrd Mat Total 771 | 76 695 Wait 97 | . 97 Move 563 | 63 500 Hop . | . . Pick Up 16 | 7 9 Fast Attach 8 | 5 3 Attach 2 | 1 1 Detach 2 | . 2 Swap 14 | . 14 Drop 10 | . 10 Fire 49 | . 49 Melee 9 | . 9 Ram 1 | . 1 Kick . | . . Crush . | . . Escape Stasis . | . . Rewire . | . . Trap . | . . Miscellaneous . | . . Route ------- -11/Scrapyard -10/Materials (discovered 2 exits: [*Mat x2]) History --------- Turn | Location | Event 8 | -11/Scrapyard | Discovered new exit (range 16) 88 | -11/Scrapyard | Entered Materials 319 | -10/Materials | Build established: Mutant 546 | -10/Materials | Discovered new exit (range 16) 865 | -10/Materials | Discovered new exit (range 8) 884 | -10/Materials | Core integrity fell below 50% 949 | -10/Materials | Core integrity fell below 20% 950 | -10/Materials | Core destroyed Last Messages --------------- 00936_ Overheating: Matter decay (-38). 00937_ G-34 Mercenary heat short circuits Ion Engine. 00937_ Aluminum Leg melted. 00937_ G-34 Mercenary destroyed. 00938_ Power failure, Ion Engine shutdown. 00940_ Overheating: Core damaged (-40). 00940_ G-34 Mercenary destroyed. 00941_ Overheating: Particle Gun damaged (-3). 00942_ Overheating: Med. Armor Plating damaged (-15). 00943_ Overheating: Ion Engine damaged (-11). 00943_ Overheating: Wheel damaged (-1). 00943_ Overheating: Med. Armor Plating damaged (-25). 00943_ G-34 Mercenary destroyed. 00946_ Overheating: Energy bleed (-44). 00946_ Terrain Scanner melted. 00946_ U-05 Engineer destroyed. 00947_ Power failure, Ion Engine shutdown. 00947_ Overheating: Particle Gun damaged (-4). 00949_ Overheating: Core damaged (-45). 00950_ Overheating: Core damaged (-47). Map ----- +----------------------------------------------------+ | ## #??????# ==#????????????????????????????? | | ## #??????#! ]#????????????????????????????? | | ## #??????# [[[ ]#????????????????????????????? | | ## #??????########????????????????????????????? | | ## #??????????????????????????????????????????? | | ## #??????????????????????????????????????????? | | ## #??????????????????????????????????????????? | | ## #??????????????????????????????????????????? | | ### #??????????????????????????????????????????? | | ??# #??????????????????????????????????????????? | | ??# #??????????????????????????????????????????? | | ??# #??????????????????????????????????????????? | | ??# #??????????????????????????????????????????? | | ??# +??????????????????????????????????????????? | | ### #??????????????????????????????????????????? | | # ########################???????????????????? | | # #???????????????????? | | # #???????????????????? | | " # """ """ """ """ o###### ???????????? | | " # """ """ """ """ ?????????????? | | " #?# """ """ % "" " ==[ ???????????????? | | #?# * ==%#????????????????????? | | ##### !*#????????????????????? | | ! #????????????????????? | | = *%!#????????????????????? | | *########################@% #????????????????????? | | =#??????????????????????#%< #????????????????????? | | %#??????????????????????# * #????????????????????? | | =#??????????????????????#####????????????????????? | | +#########???????????????????????????????????????? | | * ! #???????????????????????????????????????? | | """ "" #???????????????????????????????????????? | | """ "" #???????????????????????????????????????? | | """ T" #???????????????????????????????????????? | | "" #???????????????????????????????????????? | | "" #???????????????????????????????????????? | | #???????????????????????????????????????? | | ##########???????????????????????????????????????? | | | | | | | | | | | | | | | | | | | | | | | | | +----------------------------------------------------+ Best States ------------- Heat Dissipation 25 Energy Generation 10 Energy Capacity 250 Matter Stores 300 Matter Capacity 300 Sight Range 16 Terrain Scan Density 10 Armor Coverage 225 Evasion (%) 55 Targeting Accuracy 5 Recoil Reduction 2 Item Schematics ----------------- None Robot Schematics ------------------ None Fabricated ------------ Nothing Alien Tech Used ----------------- None Achievements -------------- None Challenges ------------ None Game ------ Seed PhysicsWaveBooster Manual? 0 Play Time 00:19:23 Cumulative 17.1 hours Start 2024.04.21 @ 10:09:10 End 2024.04.21 @ 10:26:39 Sessions 1 Manual Loads 0 Difficulty Rogue Special Mode None Game No. 19 Rogue 19 Adventurer 0 Explorer 0 Win Type - Total 0 Types 0/0/0/0/0/0/0/0/0 Lore% 16 Gallery% 14 Achievement% 16 Wizard Run 0 Options --------- Layout 2 ASCII 0 Keyboard 1 Movement Numpad Keybinds 0 Fullscreen 1 Font 16/SmallcapsGlow Map View 55x47 Zoom Use 0% Tactical HUD 1 Map Filters NONE Filters NONE Steam 1 RUN: 3cb7c486-6069-40eb-9f73-4072d4ff6da2